bitfinex/quotes_ETHUSD_20250625
["timestamp","ask_amount","ask_price","bid_price","bid_amount"]
[1750853662024,4.12576678,2423.8,2423.3,5.13960447]
[1750853662203,4.12610669,2423.6,2423.1,4.93436229]
[1750853662414,6.755,2423.5,2423.2,4.12676857]
[1750853662624,6.755,2423.5,2423.1,5.13996896]
[1750853663024,6.755,2423.5,2423.2,4.12676526]
[1750853663331,6.755,2423.5,2423.2,4.12668516]
[1750853663534,6.755,2423.5,2423.1,5.14000247]
[1750853663701,6.755,2423.5,2423.2,4.12675768]
[1750853664098,6.755,2423.5,2423.1,5.14002519]
[1750853664299,6.755,2423.5,2423.1,1.0131]
[1750853664633,10.8813047,2423.5,2423.1,1.0131]
[1750853664799,12.19558414,2423.5,2423.1,1.0131]
[1750853667239,1.76,2423.4,2423.1,1.0131]
[1750853667420,1.76,2423.4,2423.1,0.2056]
[1750853668627,0.7954,2423.3,2423.1,0.2056]
[1750853668829,6.755,2423.2,2423.1,0.2056]
[1750853669534,6.755,2423.2,2422.8,4.90197783]
[1750853669736,6.755,2423.2,2422.9,4.12728548]
[1750853669904,6.755,2423.2,2423.0,4.12698898]
[1750853670105,6.755,2423.2,2422.9,4.12719823]
[1750853670306,0.2056,2423.3,2422.9,4.12719823]
[1750853670605,6.756,2423.1,2422.8,5.10754445]
[1750853671014,6.756,2423.1,2422.8,0.2056]
[1750853671228,0.2056,2422.9,2422.6,4.12767668]
[1750853671433,6.756,2422.8,2422.7,4.12759378]
[1750853671636,6.756,2422.8,2422.6,4.12771527]
[1750853672945,6.756,2422.8,2422.5,0.2056]
[1750853673116,8.516,2422.8,2422.5,4.33353972]
[1750853673434,8.516,2422.8,2422.6,4.127795]
[1750853673928,8.516,2422.8,2422.5,4.33348887]
[1750853674234,8.516,2422.8,2422.6,4.1277709]
[1750853674736,8.516,2422.8,2422.5,0.2056]
[1750853674939,4.12772703,2422.7,2422.4,0.135638]
[1750853675112,4.12782328,2422.6,2422.4,0.135638]
[1750853675309,6.756,2422.5,2422.4,0.135638]
[1750853675506,6.9624,2422.5,2422.4,0.135638]
[1750853679329,11.90686697,2422.5,2422.4,0.135638]
[1750853679643,13.09755367,2422.5,2422.4,0.135638]
[1750853681339,14.85655367,2422.5,2422.4,0.135638]
[1750853682140,14.85755367,2422.5,2422.4,0.135638]
[1750853683325,6.34155367,2422.5,2422.4,0.135638]
[1750853683525,14.85755367,2422.5,2422.4,0.135638]
[1750853684423,24.85755367,2422.5,2422.4,0.135638]
[1750853685544,25.40755367,2422.5,2422.4,0.135638]
[1750853687142,16.07505367,2422.5,2422.4,0.135638]
[1750853687343,4.12796482,2422.6,2422.4,0.135638]
[1750853687344,6.758,2422.6,2422.4,0.135638]
[1750853687536,4.12796697,2422.5,2422.4,0.135638]
[1750853687932,4.88436697,2422.5,2422.4,0.135638]
[1750853691620,10.88582762,2422.6,2422.4,0.135638]
[1750853691621,1.69760857,2422.8,2422.4,0.135638]
[1750853691817,10.88565759,2422.7,2422.4,0.135638]
[1750853692128,4.12796697,2422.5,2422.4,0.135638]
[1750853692330,10.88596697,2422.5,2422.4,0.135638]
[1750853693528,6.758,2422.5,2422.4,0.135638]
[1750853693731,10.88596697,2422.5,2422.4,0.135638]
[1750853694114,6.758,2422.5,2422.4,0.135638]
[1750853695126,10.88596697,2422.5,2422.4,0.135638]
[1750853695327,12.38731969,2422.5,2422.4,0.135638]
[1750853696551,6.758,2422.5,2422.4,0.135638]
[1750853696720,4.12763403,2422.7,2422.4,0.907538]
[1750853696920,8.518,2422.6,2422.4,0.907538]
[1750853697322,8.7236,2422.6,2422.4,0.907538]
[1750853699625,8.7236,2422.6,2422.4,0.135638]
[1750853699825,5.4130897,2422.5,2422.4,0.135638]
[1750853700633,1.28512273,2422.5,2422.4,0.135638]
[1750853700834,4.12796697,2422.5,2422.4,0.135638]
[1750853705238,8.518,2422.6,2422.4,0.135638]
[1750853705450,8.7236,2422.6,2422.4,0.964938]
[1750853705758,6.758,2422.5,2422.4,0.964938]
[1750853706230,6.758,2422.5,2422.4,0.135638]
[1750853706654,10.88596697,2422.5,2422.4,0.135638]
[1750853706858,6.758,2422.5,2422.4,0.135638]
[1750853707059,8.45592718,2422.5,2422.4,0.135638]
[1750853707559,6.758,2422.5,2422.4,0.135638]
[1750853708070,10.88596697,2422.5,2422.4,0.135638]
[1750853712386,11.71746697,2422.5,2422.4,0.135638]
[1750853713270,10.88596697,2422.5,2422.4,0.135638]
[1750853714280,6.758,2422.5,2422.4,0.135638]
[1750853715163,8.516,2422.5,2422.4,0.135638]
[1750853715478,6.757,2422.5,2422.4,0.135638]
[1750853715668,1.9646,2422.6,2422.5,0.788]
[1750853715669,0.2056,2422.6,2422.5,0.788]
[1750853715868,6.9626,2422.6,2422.5,0.788]
[1750853716067,6.757,2422.6,2422.5,4.91588118]
[1750853716269,6.757,2422.6,2422.5,6.03945362]
[1750853716471,0.2056,2423.0,2422.6,0.7825]
[1750853716788,6.772,2422.9,2422.6,4.91029658]
[1750853716966,6.772,2422.9,2422.6,0.7825]
[1750853717965,4.1275401,2422.8,2422.4,0.918138]
[1750853718155,6.773,2422.7,2422.4,0.918138]
[1750853718467,6.773,2422.7,2422.4,5.04625834]
[1750853719291,6.773,2422.7,2422.5,4.12796681]
[1750853719579,6.773,2422.7,2422.4,0.918138]
[1750853719580,6.773,2422.7,2422.4,5.0461926]
[1750853719784,6.773,2422.7,2422.4,5.04626808]
[1750853719958,6.773,2422.7,2422.4,0.918138]
[1750853720587,6.773,2422.7,2422.5,4.12794623]
[1750853721591,6.773,2422.7,2422.4,5.04620293]
[1750853722791,6.773,2422.7,2422.4,0.918138]
[1750853723659,6.773,2422.7,2422.6,0.6]
[1750853724386,6.773,2422.7,2422.4,0.135638]
[1750853724590,8.11798453,2422.7,2422.4,0.135638]
[1750853724787,4.12796697,2422.5,2422.4,0.135638]
[1750853727290,4.89596697,2422.5,2422.4,0.135638]
[1750853729282,8.11798453,2422.7,2422.4,0.135638]
[1750853729595,5.47272743,2422.7,2422.4,0.888838]
[1750853729794,4.12750267,2422.8,2422.4,0.888838]
[1750853729994,6.764,2422.6,2422.4,5.01688504]
[1750853730400,1.759,2422.7,2422.5,4.12796697]
[1750853730598,6.764,2422.6,2422.5,4.12796697]
[1750853731099,0.2056,2422.8,2422.5,4.12796697]
[1750853731396,6.765,2422.7,2422.6,0.91449163]
[1750853731813,6.765,2422.7,2422.5,5.08668245]
[1750853732397,6.765,2422.7,2422.5,0.9588]
[1750853732600,6.765,2422.7,2422.5,5.08662184]
[1750853733563,6.765,2422.7,2422.6,0.6]
[1750853733767,6.765,2422.7,2422.6,4.72779658]
[1750853733998,6.765,2422.7,2422.6,5.72280222]
[1750853734895,6.766,2422.8,2422.6,5.72280222]
[1750853739106,6.766,2422.8,2422.6,0.6]
[1750853745102,4.1276262,2422.7,2422.6,0.6]
[1750853745593,11.86752515,2422.8,2422.6,0.6]
[1750853745783,11.09912515,2422.8,2422.6,0.6]
[1750853746906,6.9716,2422.8,2422.6,0.6]
[1750853747085,8.74903627,2422.8,2422.6,0.6]
[1750853750815,12.8765793,2422.8,2422.6,0.6]
[1750853753685,8.74903627,2422.8,2422.6,0.6]
[1750853754384,12.87650284,2422.8,2422.6,0.6]
[1750853754787,4.1276262,2422.7,2422.6,0.6]
[1750853755100,12.8765763,2422.8,2422.6,0.6]
[1750853755418,4.1276262,2422.7,2422.6,0.6]
[1750853755818,12.8765763,2422.8,2422.6,0.6]
[1750853755819,12.87658093,2422.8,2422.6,0.6]
[1750853760192,11.09914466,2422.8,2422.6,0.6]
[1750853760392,6.9716,2422.8,2422.6,0.6]
[1750853761225,11.09905698,2422.8,2422.6,0.6]
[1750853761733,11.09905688,2422.8,2422.6,0.6]
[1750853762839,4.1276262,2422.7,2422.6,0.6]
[1750853762999,5.65029451,2422.7,2422.6,0.6]
[1750853763200,6.41739451,2422.7,2422.6,0.6]
[1750853763403,12.23421302,2422.7,2422.6,0.6]
[1750853763604,22.23421302,2422.7,2422.6,0.41249268]
[1750853763893,22.23421302,2422.7,2422.4,0.135638]
[1750853763894,14.88986697,2422.5,2422.4,0.135638]
[1750853764101,33.85686697,2422.5,2422.4,0.135638]
[1750853764606,33.85686697,2422.5,2420.8,0.2064]
[1750853764607,4.13018338,2421.2,2420.8,0.2064]
[1750853764810,7.19004834,2421.1,2420.8,0.2064]
[1750853765010,0.2064,2421.2,2420.9,0.8242]
[1750853765255,6.757,2421.2,2420.9,1.0306]
[1750853765733,6.757,2421.2,2420.9,5.16118279]
[1750853766030,6.757,2421.2,2420.9,0.8242]
[1750853766211,6.9634,2421.2,2420.9,4.95486857]
[1750853766528,0.7555,2421.5,2421.0,4.93852457]
[1750853766529,6.771,2421.1,2421.0,4.93852457]
[1750853766825,6.775,2421.2,2421.0,0.808]
[1750853767024,6.9814,2421.2,2421.1,4.13035397]
[1750853768126,6.775,2421.2,2421.1,4.13035397]
[1750853768430,0.2064,2421.5,2421.4,4.12976627]
[1750853768594,6.9824,2421.5,2421.4,4.12976627]
[1750853768798,6.9824,2421.5,2421.4,4.90136627]
[1750853769193,6.9824,2421.5,2421.4,0.7716]
[1750853769593,6.9824,2421.5,2421.2,4.13015354]
[1750853769594,6.9824,2421.5,2421.2,4.90170911]
[1750853769798,6.9824,2421.5,2421.1,4.33669595]
[1750853770007,0.2064,2421.4,2421.2,4.13015562]
[1750853770653,0.2064,2421.4,2421.1,4.13028396]
[1750853770853,0.2064,2421.4,2421.2,4.13016481]
[1750853771154,0.2064,2421.4,2421.1,4.13028774]
[1750853771442,0.2064,2421.4,2421.0,4.89879183]
[1750853772301,4.13006469,2421.3,2420.9,0.2064]
[1750853772507,4.13006469,2421.3,2420.8,4.94268143]
[1750853772508,6.9854,2421.2,2420.8,5.14908143]
[1750853772825,6.9854,2421.2,2420.9,4.13069519]
[1750853773341,6.9854,2421.2,2421.0,4.13052457]
[1750853773499,6.9854,2421.2,2421.1,4.13035397]
[1750853774098,6.9854,2421.2,2421.0,4.1304398]
[1750853775497,6.9854,2421.2,2420.8,5.14911265]
[1750853775498,0.7546,2421.1,2420.8,0.2064]
[1750853775730,2.5266,2421.1,2420.6,4.13104373]
[1750853776812,6.6569819,2421.1,2420.6,4.13104373]
[1750853778345,4.13054881,2421.0,2420.5,4.9431893]
[1750853778506,4.13052457,2421.0,2420.5,0.8119]
[1750853778705,4.13098126,2420.8,2420.3,14.89417183]
[1750853778906,0.7675,2420.6,2420.1,4.13195543]
[1750853779129,1.772,2420.6,2420.3,4.1315964]
[1750853779445,6.789,2420.7,2420.2,4.1317926]
[1750853779736,11.72932007,2420.7,2420.2,4.8993926]
[1750853780031,7.5982,2420.7,2420.3,4.13170636]
[1750853780336,7.5982,2420.7,2420.4,4.13152366]
[1750853780919,7.5982,2420.7,2420.3,4.13165411]
[1750853781441,4.13120747,2420.6,2420.2,0.7676]
[1750853781625,11.72926755,2420.7,2420.2,0.7676]
[1750853781824,4.13129042,2420.6,2420.2,0.7676]
[1750853782028,13.23778156,2420.7,2420.2,4.8994858]
[1750853782748,4.13120849,2420.6,2420.2,4.8994858]
[1750853782906,13.23778231,2420.7,2420.2,4.8994858]
[1750853783106,4.13122824,2420.6,2420.1,4.13196674]
[1750853783639,13.23777195,2420.7,2420.2,4.13187853]
[1750853784055,9.10665125,2420.7,2420.2,4.13187853]
[1750853784364,13.23770164,2420.7,2420.2,4.13187853]
[1750853784535,9.10665125,2420.7,2420.3,4.13171073]
[1750853784930,7.5982,2420.7,2420.3,4.13171073]
[1750853785653,0.2064,2420.5,2420.2,4.90358326]
[1750853785958,6.793,2420.4,2420.3,4.13171047]
[1750853787035,6.793,2420.4,2420.2,4.90362679]
[1750853787548,6.793,2420.4,2420.1,0.2064]
[1750853787763,6.793,2420.4,2420.1,4.3383248]
[1750853788672,7.90606929,2420.4,2420.1,0.2064]
[1750853788827,7.90606929,2420.4,2419.9,0.2196526]
[1750853788828,4.13206065,2420.1,2419.9,0.2196526]
[1750853789173,1.773,2420.3,2419.9,0.2196526]
[1750853789174,7.7783,2420.0,2419.9,0.2196526]
[1750853789327,0.2064,2420.0,2419.9,4.35205476]
[1750853789527,6.795,2420.0,2419.9,4.78726024]
[1750853789752,6.795,2420.0,2419.9,5.61196024]
[1750853790353,0.2064,2420.3,2419.9,5.61196024]
[1750853790354,0.2064,2420.3,2420.2,4.13188992]
[1750853790565,6.8,2420.4,2420.3,4.13156151]
[1750853790883,6.799,2420.5,2420.4,4.13153159]
[1750853791565,4.1301442,2421.3,2420.4,0.92943436]
[1750853791738,9.907,2421.4,2420.6,4.93624875]
[1750853791739,0.2064,2420.9,2420.6,4.93624875]
[1750853791942,0.2064,2421.0,2420.8,4.13086582]
[1750853792143,0.2064,2421.0,2420.9,4.13069519]
[1750853792358,6.803,2421.0,2420.8,4.33718017]
[1750853793072,6.803,2421.0,2420.6,0.8052]
[1750853793240,6.803,2421.0,2420.7,0.2064]
[1750853793646,6.803,2421.0,2420.7,4.33742201]
[1750853794359,6.803,2421.0,2420.7,0.2064]
[1750853794566,6.803,2421.0,2420.7,4.33737464]
[1750853795642,6.803,2421.0,2420.7,0.2064]
[1750853795834,6.803,2421.0,2420.7,4.33733926]
[1750853796081,6.801,2420.9,2420.7,0.2064]
[1750853796253,6.801,2420.9,2420.7,4.33738628]
[1750853796871,6.801,2420.9,2420.7,0.2064]
[1750853797667,6.801,2420.9,2420.7,4.33742871]
[1750853797867,6.801,2420.9,2420.8,4.13086582]
[1750853798369,6.801,2420.9,2420.7,4.33735025]
[1750853799976,6.801,2420.9,2420.7,0.2064]
[1750853800543,6.801,2420.9,2420.7,4.33742678]
[1750853804548,6.788,2421.1,2421.0,4.93682457]
[1750853804971,6.788,2421.1,2420.8,0.2064]
[1750853804972,6.788,2421.1,2420.9,4.13063609]
[1750853805479,6.788,2421.1,2421.0,4.13052457]
[1750853807050,6.788,2421.1,2420.9,4.13062301]
[1750853809061,6.788,2421.1,2421.0,4.13052457]
[1750853810574,6.788,2421.1,2420.8,5.14349058]
[1750853810575,6.788,2421.1,2420.9,4.13060945]
[1750853814184,6.788,2421.1,2420.8,5.14348754]
[1750853814372,6.788,2421.1,2420.8,4.33718754]
[1750853814581,6.788,2421.1,2420.8,0.2064]
[1750853814777,8.15953201,2421.1,2420.8,0.2064]
[1750853815067,8.15953201,2421.1,2420.7,4.13095993]
[1750853815385,0.2064,2421.0,2420.7,4.13095993]
[1750853815887,0.2064,2421.0,2420.8,4.13083973]
[1750853816571,0.2064,2421.0,2420.7,4.13094483]
[1750853816887,5.12737083,2420.9,2420.4,4.33780172]
[1750853817086,1.776,2420.8,2420.4,0.2064]
[1750853817382,0.2064,2420.5,2420.1,4.13198431]
[1750853817585,0.2064,2420.5,2420.0,4.33849627]
[1750853817586,4.33779368,2420.5,2420.0,4.33853859]
[1750853817883,0.2064,2420.5,2420.1,4.13201882]
[1750853819182,4.337781,2420.5,2420.0,4.33854391]
[1750853819383,0.7633,2420.4,2420.0,4.13213705]
[1750853819584,6.9874,2420.3,2420.0,4.13213705]
[1750853819766,6.9874,2420.3,2420.0,4.1321492]
[1750853819767,8.557,2420.3,2420.0,4.1321492]
[1750853819967,0.2064,2420.2,2420.0,4.1321492]
[1750853820369,0.2064,2420.2,2419.9,4.35195896]
[1750853820696,0.2064,2420.2,2420.0,4.13222187]
[1750853820857,0.2064,2420.2,2419.9,4.35193351]
[1750853821270,1.10456822,2420.2,2419.9,0.2196526]
[1750853821703,0.2064,2420.2,2420.0,4.13210572]
[1750853822963,0.7633,2420.4,2420.1,0.7881]
[1750853822964,6.78,2420.4,2420.1,0.7881]
[1750853823260,6.78,2420.4,2420.0,4.13214818]
[1750853823475,0.2064,2420.3,2420.0,4.13214818]
[1750853823774,1.0098,2420.3,2420.0,4.13214818]
[1750853824559,1.0098,2420.3,2420.1,4.13198929]
[1750853824796,0.2064,2420.3,2420.0,4.13214832]
[1750853824996,0.79,2420.2,2419.9,0.2196526]
[1750853825490,0.79,2420.2,2420.0,4.1322123]
[1750853825792,0.79,2420.2,2419.9,4.35196724]
[1750853826001,4.9521314,2420.0,2419.9,0.2196526]
[1750853826203,13.4035204,2420.0,2419.9,0.2196526]
[1750853826358,9.271289,2420.0,2419.9,0.2196526]
[1750853826690,11.056289,2420.0,2419.9,0.2196526]
[1750853827056,2.490289,2420.0,2419.9,0.2196526]
[1750853827287,9.5953,2420.0,2419.9,0.2196526]
[1750853828480,13.7275314,2420.0,2419.9,0.2196526]
[1750853828866,9.5953,2420.0,2419.9,0.2196526]
[1750853829189,13.7275314,2420.0,2419.9,0.2196526]
[1750853829389,15.51347559,2420.0,2419.9,0.2196526]
[1750853831668,11.38124419,2420.0,2419.9,0.2196526]
[1750853832164,15.51347559,2420.0,2419.9,0.2196526]
[1750853832355,11.17484419,2420.0,2419.9,0.2196526]
[1750853833393,2.60584419,2420.0,2419.9,0.2196526]
[1750853833689,13.5161314,2420.0,2419.9,0.2196526]
[1750853833857,9.3839,2420.0,2419.9,0.2196526]
[1750853834286,13.5161314,2420.0,2419.9,0.2196526]
[1750853834494,9.3839,2420.0,2419.9,0.2196526]
[1750853834705,9.3799,2420.0,2419.9,0.2196526]
[1750853834858,6.785,2420.0,2419.9,4.35193417]
[1750853835061,1.773,2420.1,2419.9,4.35193417]
[1750853835319,6.785,2420.0,2419.9,4.35193417]
[1750853836205,1.773,2420.1,2420.0,4.13220178]
[1750853836357,8.566,2420.1,2420.0,4.13220178]
[1750853837775,8.566,2420.1,2419.9,4.35195909]
[1750853838270,8.566,2420.1,2420.0,4.1322314]
[1750853840335,6.788,2420.1,2420.0,4.1322314]
[1750853841984,6.788,2420.1,2419.9,0.2196526]
[1750853842184,8.05727909,2420.1,2419.9,0.2196526]
[1750853842391,9.08937909,2420.1,2419.9,0.2196526]
[1750853843806,13.2214843,2420.1,2419.9,0.2196526]
[1750853844014,0.2064,2420.0,2419.9,0.2196526]
[1750853844215,11.01219586,2420.0,2419.9,0.2196526]
[1750853844394,24.50085388,2420.0,2419.9,0.2196526]
[1750853845012,18.65718942,2420.0,2419.9,0.2196526]
[1750853845929,27.22018942,2420.0,2419.9,0.2196526]
[1750853846079,18.65718942,2420.0,2419.9,0.2196526]
[1750853846285,27.22018942,2420.0,2419.9,0.2196526]
[1750853849983,17.82728942,2420.0,2419.9,0.2196526]
[1750853850191,22.26005802,2420.0,2419.9,0.2196526]
[1750853850435,26.39228942,2420.0,2419.9,0.2196526]
[1750853850727,22.26005802,2420.0,2419.9,0.2196526]
[1750853851028,12.26005802,2420.0,2419.9,0.2196526]
[1750853851324,16.39228942,2420.0,2419.9,0.56461834]
[1750853853812,16.38828942,2420.0,2419.9,0.56461834]
[1750853855282,3.69505802,2420.0,2419.9,0.56461834]
[1750853855521,12.8996314,2420.0,2419.9,0.56461834]
[1750853856621,8.7674,2420.0,2419.9,0.56461834]
[1750853857413,12.8996314,2420.0,2419.9,0.56461834]
[1750853857617,13.7121314,2420.0,2419.9,0.56461834]
[1750853857915,23.7121314,2420.0,2419.9,0.56461834]
[1750853858120,27.90702621,2420.0,2419.9,0.56461834]
[1750853859733,27.90002621,2420.0,2419.9,0.56461834]
[1750853859895,23.7051314,2420.0,2419.9,0.56461834]
[1750853860101,18.7604,2420.0,2419.9,0.56461834]
[1750853860424,10.2064,2420.0,2419.9,0.56461834]
[1750853860594,0.2064,2420.0,2419.9,0.56461834]
[1750853860795,8.7614,2420.0,2419.9,0.56461834]
[1750853862128,6.782,2420.0,2419.9,5.96074516]
[1750853862295,6.782,2420.0,2419.9,1.828343]
[1750853862495,6.782,2420.0,2419.9,0.56461834]
[1750853862931,6.9884,2420.0,2419.9,0.56461834]
[1750853863498,11.1206314,2420.0,2419.9,0.56461834]
[1750853865930,11.1206314,2420.0,2418.8,4.13415155]
[1750853865931,4.13298557,2419.6,2418.9,4.96117613]
[1750853866140,4.13298557,2419.6,2418.9,0.8272]
[1750853866141,12.69111827,2419.5,2418.9,0.8272]
[1750853866430,4.13328843,2419.4,2418.9,4.96124218]
[1750853866730,6.82,2419.3,2418.9,4.96124218]
[1750853867432,6.82,2419.3,2419.0,4.13387809]
[1750853867601,6.82,2419.3,2418.9,0.8272]
[1750853867802,8.58124699,2419.3,2418.9,0.8272]
[1750853868017,8.58124699,2419.3,2418.7,4.96485111]
[1750853868424,4.13362895,2419.2,2418.7,4.96485111]
[1750853868623,6.819,2419.1,2418.7,4.96485111]
[1750853869204,6.819,2419.1,2418.5,4.13669977]
[1750853869205,1.773,2419.0,2418.5,4.13669977]
[1750853869402,6.817,2418.9,2418.5,0.00203999]
[1750853869714,6.817,2418.9,2418.7,4.13444236]
[1750853870352,1.76124699,2419.3,2418.8,4.13428146]
[1750853870353,5.8947228,2419.3,2418.8,4.13428146]
[1750853870529,1.773,2419.0,2418.9,4.13406554]
[1750853870729,8.608,2419.0,2418.8,4.13419623]
[1750853870929,8.608,2419.0,2418.7,4.13441125]
[1750853871132,8.608,2419.0,2418.9,4.13411054]
[1750853871332,4.13333473,2419.4,2418.9,4.13411054]
[1750853871535,4.13344482,2419.3,2418.8,4.13419086]
[1750853871727,8.61,2419.3,2418.9,4.13407509]
[1750853872135,12.74344682,2419.3,2419.0,0.8031]
[1750853872732,8.61,2419.3,2419.0,0.8031]
[1750853873912,8.61,2419.3,2419.1,4.13376376]
[1750853874103,8.61,2419.3,2419.0,4.93692244]
[1750853874537,12.74343277,2419.3,2419.0,0.8031]
[1750853874704,14.43108673,2419.3,2419.0,0.8031]
[1750853875141,14.43117404,2419.3,2418.8,4.13427611]
[1750853875441,4.13362224,2419.2,2418.7,4.8846829]
[1750853875623,6.07296044,2419.2,2418.7,4.8846829]
[1750853876031,0.2064,2419.1,2418.7,5.0910829]
[1750853876227,6.838,2419.0,2418.7,0.2064]
[1750853876425,6.838,2419.0,2418.8,0.7504]
[1750853876631,6.838,2419.0,2418.9,4.13411054]
[1750853876835,6.838,2419.0,2418.8,4.88459756]
[1750853877540,6.838,2419.0,2418.8,0.7504]
[1750853877761,6.838,2419.0,2418.8,4.88467757]
[1750853879155,6.838,2419.0,2418.7,0.2064]
[1750853879156,7.54244,2419.0,2418.7,0.2064]
[1750853879445,6.854,2418.9,2418.8,4.94675532]
[1750853879811,0.2064,2419.1,2418.8,4.94675532]
[1750853880013,6.857,2419.1,2418.8,5.15315532]
[1750853880209,6.857,2419.1,2419.0,4.13393964]
[1750853880433,6.857,2419.1,2418.9,4.13397621]
[1750853880434,6.857,2419.1,2418.9,4.13401426]
[1750853880632,6.857,2419.1,2418.8,5.15321328]
[1750853881148,0.70634,2419.0,2418.7,4.13439016]
[1750853881449,7.0634,2419.1,2418.7,4.94699016]
[1750853882459,7.0634,2419.1,2418.8,4.13426881]
[1750853882686,7.0634,2419.1,2418.9,4.13408108]
[1750853883021,7.0634,2419.1,2418.8,4.13418625]
[1750853883551,7.0634,2419.1,2418.7,4.94696719]
[1750853884051,7.0634,2419.1,2418.8,4.134276]
[1750853885553,7.0634,2419.1,2418.7,4.94695806]
[1750853886147,7.0634,2419.1,2418.8,4.13428006]
[1750853887040,7.0634,2419.1,2418.9,4.13408484]
[1750853887425,7.0634,2419.1,2418.8,4.13418703]
[1750853887656,7.0634,2419.1,2418.9,4.13401493]
[1750853887833,7.0634,2419.1,2419.0,4.13393964]
[1750853888949,6.857,2419.1,2419.0,4.96053964]
[1750853889121,0.2064,2419.4,2419.0,4.96053964]
[1750853889323,6.853,2419.3,2419.0,4.96045009]
[1750853889522,6.853,2419.3,2419.1,4.1337298]
[1750853889767,6.853,2419.3,2419.0,4.96046597]
[1750853890753,6.853,2419.3,2419.0,0.8266]
[1750853890953,6.853,2419.3,2418.9,4.34043442]
[1750853891459,6.853,2419.3,2419.0,4.13391523]
[1750853892060,6.853,2419.3,2419.1,4.13369075]
[1750853893058,6.853,2419.3,2419.0,4.8937401]
[1750853895152,6.853,2419.3,2419.0,0.7599]
[1750853895370,4.33966267,2419.4,2419.0,0.7599]
[1750853895559,6.848,2419.2,2419.0,0.7599]
[1750853895760,6.848,2419.2,2419.0,4.89383739]
[1750853897455,6.848,2419.2,2419.1,4.13376875]
[1750853897877,6.848,2419.2,2419.0,4.8937778]
[1750853898075,6.848,2419.2,2418.9,4.34043282]
[1750853898538,10.98159994,2419.2,2418.8,4.90540759]
[1750853898737,4.13379013,2419.1,2418.8,0.2064]
[1750853898967,12.56189769,2419.2,2418.8,0.2064]
[1750853899363,8.42821565,2419.2,2418.8,4.34067324]
[1750853899537,12.56182611,2419.2,2418.8,4.34067324]
[1750853899976,8.42821565,2419.2,2418.8,4.34067324]
[1750853900279,12.56183877,2419.2,2418.8,0.2064]
[1750853901381,12.56183877,2419.2,2418.7,4.13437437]
[1750853901382,6.21102855,2419.1,2418.6,0.7947]
[1750853901563,1.46168288,2419.1,2418.7,4.34073821]
[1750853901876,0.2064,2419.1,2418.7,4.34073821]
[1750853902573,4.34019073,2419.1,2418.7,4.34073821]
[1750853902870,0.2064,2419.1,2418.7,4.34073821]
[1750853903474,4.34017642,2419.1,2418.7,4.34073821]
[1750853903846,0.2064,2419.1,2418.7,4.34073821]
[1750853904579,4.340169,2419.1,2418.7,4.34073821]
[1750853904880,0.2064,2419.1,2418.9,4.13408482]
[1750853905046,0.2064,2419.1,2418.8,4.13421329]
[1750853906985,4.13327299,2419.4,2418.9,4.96447901]
[1750853906986,1.807,2419.4,2418.9,4.96447901]
[1750853907281,6.837,2419.2,2419.1,4.13367611]
[1750853907780,6.837,2419.2,2419.0,4.34024422]
[1750853908377,6.837,2419.2,2419.0,0.2064]
[1750853908584,6.837,2419.2,2419.1,4.13376875]
[1750853909565,0.2064,2419.5,2419.2,4.13352612]
[1750853909774,6.835,2419.3,2419.1,4.13369265]
[1750853911246,6.835,2419.3,2419.0,4.34025466]
[1750853911675,6.83,2419.2,2419.0,4.34025466]
[1750853912590,6.83,2419.2,2419.0,0.2064]
[1750853912786,7.6937,2419.2,2418.8,4.13421016]
[1750853912996,7.6937,2419.2,2418.5,0.00204665]
[1750853912997,0.8069,2419.6,2419.0,4.13384235]
[1750853913289,1.807,2419.3,2419.1,4.13368899]
[1750853913782,1.807,2419.3,2419.0,4.34024525]
[1750853913984,6.835,2419.2,2419.0,4.34024525]
[1750853915284,6.835,2419.2,2419.1,4.13376875]
[1750853915788,0.2064,2419.5,2419.1,4.13376875]
[1750853915984,6.836,2419.2,2419.1,4.13376875]
[1750853916288,4.13170308,2420.4,2419.1,4.13376875]
[1750853916289,7.6217,2420.2,2419.5,0.7909]
[1750853916582,1.807,2420.5,2419.8,0.7909]
[1750853916792,6.848,2420.4,2419.9,0.7909]
[1750853916950,1.807,2420.5,2420.4,4.9191485]
[1750853917151,1.807,2420.9,2420.6,4.13118548]
[1750853917452,1.807,2420.9,2420.8,4.13086582]
[1750853917674,8.657,2420.9,2420.8,4.13086582]
[1750853917983,10.7073,2421.2,2420.6,4.13114326]
[1750853918189,10.7073,2421.2,2420.4,0.7876]
[1750853918190,6.848,2421.1,2420.9,4.13067559]
[1750853918482,9.916,2421.2,2420.4,0.7876]
[1750853918683,10.97929452,2421.2,2420.6,4.13112064]
[1750853918984,1.51093342,2421.1,2420.6,4.13112064]
[1750853919284,1.51093342,2421.1,2420.6,4.1310952]
[1750853919467,7.6393,2421.0,2420.4,0.7876]
[1750853919650,7.6393,2421.0,2420.6,4.13108604]
[1750853920185,7.6393,2421.0,2420.7,4.13102679]
[1750853920394,1.09562334,2420.9,2420.4,4.1315025]
[1750853920584,15.2264003,2420.9,2420.3,4.13163545]
[1750853921251,15.22639365,2420.9,2420.3,4.13163545]
[1750853921457,11.09562334,2420.9,2420.5,4.13136507]
[1750853921656,11.09562334,2420.9,2420.4,4.1314709]
[1750853921987,2.28654716,2420.8,2420.4,4.1314709]
[1750853922288,2.28654716,2420.8,2419.9,0.7822]
[1750853922289,4.95215862,2420.7,2419.9,0.7822]
[1750853922493,8.653,2420.6,2419.9,0.7822]
[1750853922679,8.653,2420.6,2420.2,4.1317628]
[1750853922866,8.653,2420.6,2420.3,4.13170969]
[1750853923068,0.9474,2420.5,2420.3,4.13170969]
[1750853923469,0.9474,2420.5,2420.1,4.13197091]
[1750853923663,0.9474,2420.5,2420.1,4.1319381]
[1750853923991,0.9474,2420.5,2420.2,4.13188782]
[1750853925682,0.9474,2420.5,2420.1,4.13201401]